bitfinex-derivatives/quotes_BTCF0:USTF0_20240829
["timestamp","ask_amount","ask_price","bid_price","bid_amount"]
[1724956586646,0.1702,59618.0,59617.0,0.08409048]
[1724956586837,0.1702,59623.0,59620.0,0.083834]
[1724956587041,0.1702,59623.0,59617.0,0.36105148]
[1724956587042,0.32422864,59628.0,59617.0,0.36105148]
[1724956587240,0.1702,59627.0,59617.0,0.36105148]
[1724956587542,0.00025148,59628.0,59625.0,0.3608]
[1724956587933,0.17045148,59628.0,59625.0,0.3608]
[1724956588433,0.3608,59627.0,59617.0,0.36105148]
[1724956588838,0.68477716,59627.0,59617.0,0.44488948]
[1724956589549,0.083828,59625.0,59617.0,0.44488948]
[1724956589744,0.083828,59625.0,59617.0,0.44988948]
[1724956589946,0.40780516,59625.0,59617.0,0.44988948]
[1724956590250,0.3608,59621.0,59617.0,0.00525148]
[1724956590443,0.444634,59621.0,59617.0,0.00525148]
[1724956590640,0.76861116,59621.0,59617.0,0.00525148]
[1724956591246,0.68477716,59621.0,59617.0,0.00525148]
[1724956591445,0.68477716,59621.0,59617.0,0.00025148]
[1724956591446,0.083837,59618.0,59617.0,0.00025148]
[1724956591940,1.51101416,59618.0,59617.0,0.00025148]
[1724956592343,1.68125416,59618.0,59617.0,0.00025148]
[1724956592553,1.0995895,59618.0,59617.0,0.00025148]
[1724956592745,0.5963895,59618.0,59617.0,0.00025148]
[1724956593043,0.50821716,59618.0,59617.0,0.00025148]
[1724956593352,0.014,59618.0,59617.0,0.00025148]
[1724956593849,0.014,59618.0,59617.0,0.58729048]
[1724956594055,0.17049148,59628.0,59626.0,0.083826]
[1724956594241,0.17049148,59628.0,59621.0,0.444633]
[1724956594242,0.49446864,59628.0,59621.0,0.444633]
[1724956595045,0.49446864,59628.0,59618.0,0.083836]
[1724956595246,0.444632,59623.0,59617.0,0.00025148]
[1724956595449,0.083832,59623.0,59617.0,0.00025148]
[1724956595644,0.083832,59622.0,59617.0,0.08408948]
[1724956595849,0.083832,59622.0,59621.0,0.001]
[1724956596151,0.083826,59626.0,59621.0,0.001]
[1724956596348,0.083828,59625.0,59621.0,0.001]
[1724956596741,0.01325148,59628.0,59621.0,0.001]
[1724956596940,0.001,59623.0,59621.0,0.001]
[1724956597141,0.084831,59623.0,59621.0,0.001]
[1724956597949,0.083832,59622.0,59621.0,0.001]
[1724956598362,0.001,59626.0,59617.0,0.00025148]
[1724956598656,0.40880416,59626.0,59623.0,0.08383]
[1724956599060,0.32397716,59626.0,59617.0,0.00025148]
[1724956599249,0.083828,59625.0,59619.0,0.083835]
[1724956599449,0.32397716,59626.0,59617.0,0.00025148]
[1724956599651,0.32397716,59626.0,59620.0,0.083833]
[1724956599950,0.32697716,59626.0,59621.0,0.002]
[1724956600148,0.083832,59622.0,59621.0,0.002]
[1724956600548,0.083837,59618.0,59617.0,0.00025148]
[1724956600854,0.083837,59618.0,59606.0,0.083853]
[1724956600855,0.083848,59611.0,59606.0,0.083853]
[1724956601055,0.083848,59611.0,59600.0,0.3608]
[1724956601056,0.3608,59611.0,59603.0,0.083858]
[1724956601251,0.08385,59609.0,59600.0,0.3608]
[1724956601556,0.08385,59609.0,59604.0,0.083856]
[1724956602055,0.00025148,59610.0,59600.0,0.3608]
[1724956602256,0.32422864,59610.0,59600.0,0.3608]
[1724956602457,0.32422864,59610.0,59609.0,0.08385]
[1724956602458,0.00025148,59610.0,59609.0,0.08385]
[1724956603168,0.01125148,59610.0,59609.0,0.08385]
[1724956603759,0.01525148,59610.0,59609.0,0.08485]
[1724956603954,0.01525148,59610.0,59599.0,0.00025148]
[1724956603955,0.08385,59609.0,59599.0,0.00025148]
[1724956604166,0.083863,59600.0,59599.0,0.00025148]
[1724956604353,0.083863,59600.0,59587.0,0.3608]
[1724956604354,0.167726,59600.0,59587.0,0.3608]
[1724956604557,0.3608,59588.0,59574.0,0.2857]
[1724956604856,0.17028,59587.0,59571.0,0.3608]
[1724956605170,0.08389,59581.0,59571.0,0.3608]
[1724956605466,0.68477716,59588.0,59576.0,0.3608]
[1724956605467,0.00148,59588.0,59576.0,0.3608]
[1724956605659,0.0002517,59582.0,59581.0,0.444689]
[1724956606155,0.083891,59580.0,59576.0,0.444696]
[1724956606362,0.32422886,59582.0,59576.0,0.3608]
[1724956606852,0.32422886,59582.0,59570.0,0.0002517]
[1724956606853,0.3608,59578.0,59570.0,0.0002517]
[1724956607056,0.3608,59578.0,59571.0,0.083903]
[1724956607255,0.68477716,59578.0,59571.0,0.083903]
[1724956607562,0.68477716,59578.0,59562.0,0.3608]
[1724956607864,0.0839,59574.0,59567.0,0.3608]
[1724956608069,0.68629716,59578.0,59575.0,0.083898]
[1724956608269,0.0002517,59582.0,59576.0,0.3628]
[1724956608270,0.001,59580.0,59576.0,0.3628]
[1724956608454,0.001,59580.0,59579.0,0.083892]
[1724956608762,0.0002517,59582.0,59579.0,0.083892]
[1724956609158,0.0002517,59582.0,59576.0,0.3608]
[1724956609468,0.002,59580.0,59576.0,0.3608]
[1724956609659,0.002,59580.0,59579.0,0.083892]
[1724956609964,0.002,59580.0,59576.0,0.3608]
[1724956609965,0.0002517,59582.0,59581.0,0.083889]
[1724956610265,0.083891,59580.0,59577.0,0.00096]
[1724956610467,0.083891,59580.0,59576.0,0.36164]
[1724956610762,0.33022886,59582.0,59576.0,0.36164]
[1724956610763,0.083895,59577.0,59576.0,0.36164]
[1724956610968,0.083895,59577.0,59576.0,0.3608]
[1724956611260,0.40787216,59577.0,59576.0,0.3608]
[1724956612163,0.083898,59575.0,59571.0,0.0002517]
[1724956612354,0.32397716,59577.0,59571.0,0.0002517]
[1724956612758,0.32597716,59577.0,59571.0,0.0002517]
[1724956613056,0.3608,59573.0,59571.0,0.0002517]
[1724956613361,0.32597716,59577.0,59571.0,0.0002517]
[1724956613362,0.083898,59576.0,59571.0,0.0002517]
[1724956614164,0.002,59577.0,59571.0,0.0002517]
[1724956614866,0.7208,59572.0,59552.0,0.03936528]
[1724956615069,0.63197669,59560.0,59546.0,0.3608]
[1724956615254,0.3588,59560.0,59546.0,0.3608]
[1724956615457,0.63197669,59560.0,59551.0,0.3608]
[1724956615763,0.08193,59552.0,59551.0,0.3608]
[1724956615960,0.03993459,59552.0,59551.0,0.3608]
[1724956616168,0.0841757,59557.0,59551.0,0.3608]
[1724956616756,0.35735239,59557.0,59551.0,0.3608]
[1724956617161,0.0002517,59557.0,59551.0,0.3608]
[1724956617361,0.083931,59552.0,59548.0,0.083936]
[1724956617567,0.27342839,59557.0,59550.0,0.3608]
[1724956617769,0.083932,59551.0,59550.0,0.3608]
[1724956617968,0.083932,59551.0,59547.0,0.083936]
[1724956618269,0.083933,59550.0,59546.0,0.00016823]
[1724956618570,0.08393,59553.0,59548.0,0.083935]
[1724956618868,0.0012517,59557.0,59553.0,0.083929]
[1724956619063,0.27442839,59557.0,59553.0,0.444729]
[1724956619368,0.083927,59555.0,59553.0,0.3608]
[1724956619664,0.083928,59554.0,59553.0,0.3608]
[1724956620056,0.35710469,59554.0,59553.0,0.3608]
[1724956620656,0.27317669,59554.0,59546.0,0.00016823]
[1724956621056,0.083937,59547.0,59546.0,0.00016823]
[1724956621272,0.167874,59547.0,59546.0,0.00016823]
[1724956621462,0.167874,59547.0,59532.0,0.083957]
[1724956621463,0.083951,59537.0,59519.0,0.07051335]
[1724956621665,0.083951,59537.0,59513.0,0.3608]
[1724956621666,0.7808,59520.0,59492.0,0.08292723]
[1724956621872,0.7808,59520.0,59478.0,0.45482562]
[1724956621873,0.083935,59549.0,59484.0,0.3608]
[1724956621874,0.3608,59495.0,59484.0,0.3608]
[1724956622067,0.3608,59502.0,59489.0,0.3608]
[1724956622273,0.3608,59502.0,59490.0,0.3608]
[1724956622473,0.00025214,59501.0,59495.0,0.3608]
[1724956622667,0.00025214,59501.0,59500.0,0.3608]
[1724956622859,0.00025214,59501.0,59493.0,0.3608]
[1724956623261,0.3608,59500.0,59486.0,0.36164]
[1724956623460,0.00025214,59501.0,59498.0,0.084006]
[1724956623776,0.00025214,59501.0,59493.0,0.3608]
[1724956624158,0.001,59495.0,59493.0,0.3608]
[1724956624375,0.001,59495.0,59485.0,0.3608]
[1724956624563,0.444809,59497.0,59485.0,0.3608]
[1724956625066,0.084017,59491.0,59485.0,0.3608]
[1724956625261,0.3608,59488.0,59476.0,0.084037]
[1724956625460,0.3608,59482.0,59472.0,0.3608]
[1724956625787,0.3608,59482.0,59459.0,0.5968]
[1724956625788,0.7808,59476.0,59475.0,1.21532]
[1724956626258,1.4652,59476.0,59475.0,1.21532]
[1724956626458,0.8652,59476.0,59475.0,1.21532]
[1724956627262,0.949238,59476.0,59475.0,1.21532]
[1724956627463,0.444838,59476.0,59475.0,1.21532]
[1724956627676,1.549238,59476.0,59475.0,1.130294]
[1724956627866,1.549238,59476.0,59475.0,1.028131]
[1724956627867,1.927276,59476.0,59475.0,1.028131]
[1724956628070,1.932276,59476.0,59475.0,0.831384]
[1724956628264,1.932276,59476.0,59437.0,0.084092]
[1724956628265,0.3608,59468.0,59437.0,0.084092]
[1724956628461,0.3608,59445.0,59437.0,0.084092]
[1724956628761,0.3608,59445.0,59440.0,0.15078168]
[1724956628962,0.3608,59445.0,59441.0,0.15078168]
[1724956629163,0.3608,59442.0,59425.0,0.084109]
[1724956629387,0.9608,59445.0,59412.0,0.01783766]
[1724956629388,0.444904,59430.0,59412.0,0.3608]
[1724956629585,0.3608,59419.0,59415.0,0.15078168]
[1724956629762,0.3608,59424.0,59414.0,0.15078168]
[1724956629963,0.3608,59416.0,59409.0,0.15078168]
[1724956630186,0.3608,59416.0,59363.0,0.42927548]
[1724956630187,0.3608,59410.0,59393.0,0.3608]
[1724956630364,0.3608,59401.0,59391.0,0.3608]
[1724956630561,0.3608,59419.0,59418.0,0.15078168]
[1724956630766,0.3608,59423.0,59386.0,0.34]
[1724956630767,0.3608,59431.0,59414.0,0.3608]
[1724956630976,0.00025237,59428.0,59425.0,0.3608]
[1724956631180,3.7e-07,59428.0,59427.0,0.15078168]
[1724956631481,0.42,59446.0,59425.0,0.3608]
[1724956631663,0.3608,59458.0,59445.0,0.15078131]
[1724956631867,0.42,59452.0,59444.0,0.3608]
[1724956632074,0.3608,59458.0,59447.0,0.15078131]
[1724956632370,0.3608,59453.0,59448.0,0.15078131]
[1724956632762,0.36105237,59458.0,59452.0,0.15078131]
[1724956632965,0.36105237,59458.0,59450.0,0.3608]
[1724956632966,0.00025237,59458.0,59457.0,0.15078131]
[1724956633260,0.00025237,59458.0,59457.0,0.51158131]
[1724956633462,0.3608,59470.0,59464.0,0.084054]
[1724956633673,0.3608,59476.0,59473.0,0.15078131]
[1724956633882,0.3608,59476.0,59474.0,0.15078131]
[1724956634075,0.3608,59476.0,59464.0,0.3608]
[1724956634277,0.3608,59469.0,59464.0,0.51158131]
[1724956634483,0.3608,59469.0,59464.0,0.51183368]
[1724956634774,0.36105237,59476.0,59468.0,0.15078131]
[1724956634966,0.36105237,59476.0,59464.0,0.51183368]
[1724956634967,0.3608,59469.0,59464.0,0.51183368]
[1724956635469,0.7216,59469.0,59464.0,0.15103368]
[1724956635672,0.92448,59468.0,59443.0,0.084084]
[1724956635872,0.3608,59450.0,59449.0,0.15078131]
[1724956636066,0.3608,59455.0,59449.0,0.15078131]
[1724956636272,0.3608,59450.0,59449.0,0.15078131]
[1724956636580,0.084081,59446.0,59428.0,0.00092]
[1724956636783,0.3608,59431.0,59413.0,0.084126]
[1724956636971,0.3608,59417.0,59413.0,0.084126]
[1724956637168,0.3608,59417.0,59407.0,0.3608]
[1724956637370,0.3608,59431.0,59409.0,0.3608]
[1724956637566,0.3608,59431.0,59422.0,0.3608]
[1724956637768,0.00025237,59432.0,59427.0,0.3608]
[1724956638086,0.00025237,59432.0,59430.0,0.084102]
[1724956638382,0.00025237,59432.0,59431.0,0.3608]
[1724956638572,0.3608,59455.0,59431.0,0.8656]
[1724956638770,0.3608,59443.0,59431.0,0.6574]
[1724956638972,0.3608,59443.0,59436.0,0.3608]
[1724956639377,0.3605,59443.0,59441.0,0.084087]
[1724956639581,0.92472,59442.0,59423.0,0.084112]
[1724956639880,0.92472,59442.0,59417.0,0.3608]
[1724956639881,0.3608,59434.0,59425.0,0.084108]
[1724956640082,0.3608,59434.0,59422.0,0.3608]
[1724956640267,0.3608,59434.0,59422.0,0.34470138]
[1724956640268,0.7808,59434.0,59422.0,0.34470138]
[1724956640584,0.3608,59426.0,59417.0,0.3608]
[1724956640779,0.00025237,59427.0,59417.0,0.3608]
[1724956641085,0.00025237,59427.0,59419.0,0.084117]
[1724956641268,0.36105237,59427.0,59420.0,0.084116]
[1724956641874,0.36105237,59427.0,59417.0,0.3608]
[1724956642075,0.36105237,59427.0,59422.0,0.01]
[1724956642674,0.36105237,59427.0,59425.0,0.084109]
[1724956643271,0.001,59434.0,59433.0,0.084098]
[1724956643475,0.01037541,59502.0,59434.0,0.084097]
[1724956643476,0.3608,59472.0,59434.0,0.084097]
[1724956643686,0.3608,59472.0,59466.0,0.084052]
[1724956643873,0.3608,59472.0,59460.0,0.3608]
[1724956644075,0.42,59484.0,59456.0,0.084065]
[1724956644076,0.3608,59484.0,59467.0,0.3608]
[1724956644384,0.00025237,59481.0,59480.0,0.084032]
[1724956645485,0.3608,59499.0,59489.0,0.084018]
[1724956645687,0.3608,59499.0,59480.0,1.10436]
[1724956645688,0.3608,59499.0,59486.0,0.3608]
[1724956645987,0.3608,59500.0,59486.0,0.3608]
[1724956646188,0.3608,59502.0,59486.0,0.3608]
[1724956646374,0.3608,59496.0,59490.0,0.3608]
[1724956646684,0.00025214,59500.0,59491.0,0.084016]
[1724956647290,0.00025214,59500.0,59488.0,0.00025214]
[1724956647291,0.00025214,59500.0,59496.0,0.444808]
[1724956647593,0.00025214,59500.0,59498.0,0.084006]
[1724956648211,0.3608,59514.0,59498.0,0.084006]
[1724956648212,0.3608,59514.0,59498.0,0.5042]
[1724956648493,0.3608,59514.0,59496.0,0.444809]
[1724956648494,0.001,59500.0,59496.0,0.444809]
[1724956648883,0.001,59500.0,59469.0,0.43951267]
[1724956648884,0.001,59500.0,59491.0,0.3608]
[1724956649087,0.084011,59495.0,59481.0,0.372529]
[1724956649290,0.3608,59496.0,59484.0,0.3608]
[1724956649291,0.00025214,59494.0,59484.0,0.3608]
[1724956649590,0.00025214,59494.0,59492.0,0.084014]
[1724956649781,0.00025214,59494.0,59489.0,0.3608]
[1724956650184,0.00025214,59494.0,59490.0,0.084017]
[1724956650583,0.3608,59493.0,59482.0,0.00025214]
[1724956650784,0.3608,59493.0,59486.0,0.084023]
[1724956651190,0.3608,59493.0,59482.0,0.36105214]
[1724956651383,0.444814,59493.0,59482.0,0.36105214]
[1724956651584,0.444814,59493.0,59490.0,0.001]
[1724956651887,0.3608,59493.0,59490.0,0.001]
[1724956652088,0.3608,59493.0,59482.0,0.36105214]
[1724956652283,0.006,59493.0,59491.0,0.084016]
[1724956653285,0.006,59493.0,59487.0,0.3608]
[1724956653286,0.006,59493.0,59490.0,0.084017]
[1724956653483,0.006,59493.0,59487.0,0.3608]
[1724956653689,0.006,59493.0,59491.0,0.084016]
[1724956653878,0.006,59493.0,59486.0,0.001]
[1724956653879,0.3608,59492.0,59486.0,0.085022]
[1724956654079,0.3608,59492.0,59486.0,0.001]
[1724956654296,0.3608,59487.0,59470.0,0.3608]
[1724956654595,0.3608,59481.0,59470.0,0.3608]
[1724956654895,0.3608,59492.0,59478.0,0.3608]
[1724956655191,0.3608,59492.0,59491.0,0.084016]
[1724956655384,0.3608,59492.0,59491.0,0.086016]
[1724956655584,0.3608,59499.0,59491.0,0.002]
[1724956655585,0.00025214,59497.0,59491.0,0.002]
[1724956655887,0.00025214,59497.0,59491.0,0.086016]
[1724956656191,0.00025214,59497.0,59491.0,0.002]
[1724956656583,0.00025214,59497.0,59489.0,0.3608]
[1724956656584,0.3608,59492.0,59479.0,0.00025214]
[1724956656784,0.3608,59492.0,59482.0,0.084029]
[1724956656785,0.444815,59492.0,59482.0,0.084029]
[1724956657083,0.3608,59492.0,59479.0,0.00025214]
[1724956657285,0.3608,59487.0,59479.0,0.00025214]
[1724956657788,0.3608,59492.0,59483.0,0.3608]
[1724956658081,0.3608,59492.0,59490.0,0.084016]
[1724956658286,0.00025214,59497.0,59496.0,0.084009]
[1724956658487,0.00025214,59497.0,59496.0,0.444809]
[1724956658789,0.00025214,59497.0,59493.0,0.084013]
[1724956659289,0.00025214,59497.0,59496.0,0.084009]
[1724956659587,0.00925214,59497.0,59496.0,0.001]
[1724956660389,0.00925214,59497.0,59496.0,0.085009]
[1724956660788,0.00925214,59497.0,59496.0,0.445809]
[1724956660989,0.3608,59515.0,59496.0,1.633058]
[1724956661190,0.3608,59515.0,59509.0,0.3608]
[1724956661395,0.3608,59510.0,59499.0,0.084004]
[1724956661689,0.3608,59510.0,59496.0,0.3608]
[1724956661690,0.008,59497.0,59496.0,0.001]
[1724956661891,0.092008,59497.0,59496.0,0.001]
[1724956662090,0.3608,59499.0,59491.0,0.00025214]
[1724956662391,0.01,59515.0,59514.0,0.083984]
[1724956662590,0.01,59515.0,59514.0,0.444784]
[1724956662992,0.01,59515.0,59503.0,0.3608]
[1724956663192,0.01,59515.0,59496.0,0.3618]
[1724956663193,0.083998,59504.0,59496.0,0.3618]
[1724956663385,0.36105214,59506.0,59496.0,0.001]
[1724956663591,0.3608,59501.0,59496.0,0.001]
[1724956663895,0.00025214,59506.0,59494.0,0.00025214]
[1724956664194,0.084008,59497.0,59496.0,0.001]
[1724956664601,0.084008,59497.0,59494.0,0.36105214]
[1724956664791,0.084011,59495.0,59494.0,0.36105214]
[1724956664992,0.084004,59500.0,59494.0,0.36105214]
[1724956665199,0.00025214,59506.0,59499.0,0.3608]
[1724956665499,0.084011,59495.0,59494.0,0.00125214]
[1724956665698,0.7808,59495.0,59478.0,0.3608]
[1724956665901,0.3608,59485.0,59478.0,0.3608]
[1724956666493,0.084027,59484.0,59478.0,0.3608]
[1724956666793,0.3608,59485.0,59478.0,0.3608]
[1724956667099,0.084028,59483.0,59478.0,0.3608]
[1724956667490,0.08403,59482.0,59478.0,0.3608]
[1724956667699,0.08427414,59487.0,59478.0,0.3608]
[1724956667899,0.08427414,59487.0,59478.0,0.3618]
[1724956667900,0.00025214,59487.0,59478.0,0.3618]
[1724956668399,0.00025214,59487.0,59486.0,0.3608]
[1724956668804,0.00025214,59487.0,59486.0,0.444823]
[1724956669011,0.3608,59502.0,59486.0,1.46512]
[1724956669297,0.083997,59505.0,59500.0,0.3608]
[1724956669598,0.083998,59504.0,59500.0,0.3608]
[1724956669798,0.42,59512.0,59500.0,0.3608]
[1724956669997,0.00025214,59510.0,59500.0,0.3608]
[1724956670302,0.00025214,59510.0,59507.0,0.3608]
[1724956671602,1e-08,59510.0,59509.0,0.444791]
[1724956672693,1e-08,59510.0,59509.0,0.3608]
[1724956673300,1e-08,59510.0,59509.0,0.444791]
[1724956673807,0.00100001,59510.0,59509.0,0.444791]
[1724956674191,0.00200001,59510.0,59509.0,0.445791]
[1724956674605,0.083969,59525.0,59518.0,0.083977]
[1724956674811,0.083969,59525.0,59519.0,0.3608]
[1724956675305,0.083958,59533.0,59524.0,0.3608]
[1724956675493,0.3608,59538.0,59529.0,0.3608]
[1724956676093,0.083961,59530.0,59529.0,0.3608]
[1724956676296,0.083963,59529.0,59528.0,0.00025214]
[1724956678403,0.083959,59532.0,59528.0,0.00125214]
[1724956678599,0.083959,59532.0,59529.0,0.3608]
[1724956679001,0.083953,59536.0,59529.0,0.3608]
[1724956679306,0.083953,59536.0,59531.0,0.08396]
[1724956679491,0.083953,59536.0,59529.0,0.3608]
[1724956679492,0.3608,59538.0,59533.0,0.083957]
[1724956680392,0.16156834,59534.0,59531.0,0.001]
[1724956680592,0.24552734,59532.0,59531.0,0.001]
[1724956680798,0.528718,59532.0,59531.0,0.001]
[1724956681005,0.528718,59532.0,59528.0,0.00025214]
[1724956681006,0.251889,59529.0,59528.0,0.00025214]
[1724956681305,0.083984,59514.0,59513.0,0.3608]
[1724956681803,0.083978,59519.0,59513.0,0.3608]
[1724956681804,0.083979,59518.0,59513.0,0.3608]
[1724956681996,0.083982,59516.0,59513.0,0.3608]
[1724956682192,0.05154869,59525.0,59513.0,0.3608]
[1724956682405,0.17738281,59527.0,59519.0,0.3608]
[1724956682406,0.00025214,59520.0,59519.0,0.3608]
[1724956682810,0.08422714,59520.0,59519.0,0.3608]
[1724956683007,0.00025214,59520.0,59513.0,0.3608]
[1724956683302,0.083977,59519.0,59518.0,0.3608]
[1724956683500,0.08398,59517.0,59514.0,0.3608]
[1724956683802,0.083981,59516.0,59514.0,0.3608]
[1724956684004,0.00025214,59520.0,59514.0,0.3608]
[1724956684005,0.083983,59515.0,59514.0,0.3608]
[1724956684207,0.083983,59515.0,59509.0,0.00025214]
[1724956684208,0.16798,59510.0,59509.0,0.00025214]
[1724956684512,0.16798,59510.0,59493.0,0.6649]
[1724956684513,0.084005,59499.0,59482.0,0.3608]
[1724956684696,0.55566869,59514.0,59482.0,0.3608]
[1724956684697,0.084025,59485.0,59482.0,0.3608]
[1724956684897,0.42,59491.0,59482.0,0.3608]
[1724956684898,0.05154869,59487.0,59482.0,0.3608]
[1724956685093,0.05154869,59490.0,59482.0,0.3608]
[1724956685294,0.17729388,59487.0,59482.0,0.3608]
[1724956685496,0.22884257,59487.0,59482.0,0.3608]
[1724956685716,0.084028,59483.0,59482.0,0.3608]
[1724956686102,0.083032,59480.0,59464.0,0.64046]
[1724956686304,0.084063,59458.0,59457.0,0.3608]
[1724956686502,0.7808,59458.0,59429.0,0.3608]
[1724956686811,0.3608,59446.0,59434.0,0.3608]
[1724956687304,0.42,59441.0,59434.0,0.36105238]
[1724956687513,0.42,59441.0,59434.0,0.00025238]
[1724956687514,0.084096,59435.0,59434.0,0.00025238]
[1724956687694,0.444896,59435.0,59416.0,0.3608]
[1724956687894,0.3608,59426.0,59416.0,0.3608]
[1724956688310,0.3608,59435.0,59421.0,0.3608]
[1724956688509,0.3608,59435.0,59427.0,0.3608]
[1724956688907,0.3608,59428.0,59425.0,0.00025238]
[1724956689199,0.42,59426.0,59425.0,0.00025238]
[1724956690198,0.1865452,59435.0,59425.0,0.36705238]
[1724956690400,0.1865452,59435.0,59430.0,0.3608]
[1724956690715,0.00025238,59437.0,59430.0,0.3608]
[1724956691419,0.00025238,59437.0,59436.0,0.3608]
[1724956692418,0.00025238,59437.0,59430.0,0.3608]
[1724956692609,0.084107,59427.0,59426.0,0.0027]
[1724956693010,0.007,59435.0,59426.0,0.0027]
[1724956693224,0.007,59435.0,59431.0,0.3608]
[1724956693415,0.00025238,59437.0,59431.0,0.3608]
[1724956693615,0.0841,59433.0,59431.0,0.3608]
[1724956694714,0.0841,59433.0,59426.0,0.0027]
[1724956694715,0.92476,59432.0,59426.0,0.0027]
[1724956694918,0.084107,59427.0,59426.0,0.0027]
[1724956695216,0.084107,59427.0,59425.0,0.00025238]
[1724956695813,0.444907,59427.0,59425.0,0.00025238]
[1724956696217,0.448907,59427.0,59426.0,0.001]
[1724956696611,0.953747,59427.0,59426.0,0.001]
[1724956696805,0.949747,59427.0,59425.0,0.00025238]
[1724956697006,0.448907,59427.0,59425.0,0.00125238]
[1724956697318,0.50484,59426.0,59425.0,0.00125238]
[1724956697507,0.3608,59426.0,59425.0,0.00125238]
[1724956697906,1.82644,59426.0,59411.0,0.3608]
[1724956698124,1.82644,59426.0,59404.0,0.3608]
[1724956698125,0.42,59419.0,59404.0,0.3608]
[1724956698331,0.3608,59416.0,59404.0,0.3608]
[1724956698616,0.084111,59425.0,59398.0,0.3608]
[1724956698617,0.084147,59399.0,59398.0,0.3608]
[1724956698822,0.3608,59406.0,59398.0,0.3608]
[1724956699011,0.3608,59406.0,59394.0,0.3045]
[1724956699012,0.42,59409.0,59403.0,0.3608]
[1724956699321,0.86584,59404.0,59392.0,0.001]
[1724956699522,0.3608,59406.0,59378.0,0.3608]
[1724956699523,0.7808,59393.0,59378.0,0.3608]
[1724956699827,0.084185,59372.0,59371.0,0.00088]
[1724956700119,0.084185,59372.0,59359.0,0.3608]
[1724956700120,0.084201,59361.0,59359.0,0.3608]
[1724956700337,0.084201,59361.0,59352.0,2.483]
[1724956700338,0.084212,59353.0,59352.0,2.48304]
[1724956700511,0.445012,59353.0,59352.0,1.82350728]
[1724956700742,0.3608,59360.0,59352.0,1.82350728]
[1724956700919,0.3608,59366.0,59359.0,0.3608]
[1724956701217,0.7808,59360.0,59352.0,1.82350728]
[1724956701424,0.42,59360.0,59358.0,0.3608]
[1724956701724,0.42,59360.0,59352.0,1.82350728]
[1724956701725,0.084211,59354.0,59352.0,1.82350728]
[1724956701918,0.0002526,59359.0,59353.0,0.3608]
[1724956702227,0.001,59361.0,59359.0,0.008]
[1724956702415,0.001,59361.0,59360.0,0.3608]
[1724956702613,0.0002526,59362.0,59360.0,0.3608]
[1724956702814,0.42,59376.0,59360.0,0.3608]
[1724956703015,0.42,59376.0,59369.0,0.3608]
[1724956703526,0.01,59361.0,59360.0,0.3608]
[1724956703730,0.86498,59376.0,59360.0,0.7216]
[1724956703914,0.86498,59376.0,59362.0,0.0002526]
[1724956703915,0.084193,59366.0,59362.0,0.0002526]
[1724956704109,0.42,59367.0,59362.0,0.0002526]
[1724956704110,0.444997,59364.0,59362.0,0.0002526]
[1724956704314,0.3608,59364.0,59362.0,0.0002526]
[1724956705018,0.3608,59364.0,59337.0,0.3608]
[1724956705019,0.50536,59363.0,59337.0,0.3608]
[1724956705211,0.445012,59353.0,59337.0,0.3608]
[1724956705413,0.445012,59353.0,59352.0,1.75963823]
[1724956705712,1.634664,59353.0,59352.0,1.64815323]
[1724956705911,1.634664,59353.0,59352.0,1.54184923]
[1724956705912,1.550452,59353.0,59352.0,1.54184923]
[1724956706215,1.550452,59353.0,59302.0,0.3608]
[1724956706216,0.3605474,59345.0,59302.0,0.3608]
[1724956706412,1.89624,59353.0,59302.0,0.3608]
[1724956706413,0.3608,59319.0,59302.0,0.3608]
[1724956706610,0.084277,59308.0,59302.0,0.3608]
[1724956706811,0.43,59319.0,59307.0,0.3608]
[1724956707021,0.3608,59332.0,59318.0,0.3608]
[1724956707218,0.43,59328.0,59323.0,0.3608]
[1724956707416,0.43,59328.0,59318.0,0.3608]
[1724956707725,0.439,59319.0,59306.0,0.3608]
[1724956708019,0.3608,59314.0,59305.0,0.3608]
[1724956708236,0.00025282,59318.0,59313.0,0.3608]
[1724956708411,0.3608,59314.0,59305.0,0.3608]
[1724956708825,0.00025282,59318.0,59313.0,0.3608]
[1724956709611,0.00025282,59318.0,59307.0,0.084277]
[1724956709813,0.00025282,59318.0,59316.0,0.445064]
[1724956710024,0.00025282,59318.0,59313.0,0.001]
[1724956710025,0.01425282,59318.0,59313.0,0.001]
[1724956710923,0.3608,59317.0,59313.0,0.001]
[1724956711225,0.3608,59314.0,59313.0,0.001]
[1724956711620,1.4666,59314.0,59313.0,0.001]
[1724956711829,0.3608,59314.0,59313.0,0.001]
[1724956712017,0.3608,59314.0,59300.0,0.3608]
[1724956712018,0.3608,59314.0,59305.0,0.3608]
[1724956712328,0.3608,59314.0,59313.0,0.005]
[1724956712731,0.014,59314.0,59313.0,0.3618]
[1724956713226,0.084236,59336.0,59314.0,0.50576]
[1724956713525,0.3608,59339.0,59324.0,0.3608]
[1724956713922,0.445032,59339.0,59324.0,0.3608]
[1724956714122,0.01804703,59355.0,59342.0,0.084226]
[1724956714123,0.3608,59344.0,59342.0,0.084226]
[1724956714428,0.3608,59350.0,59342.0,0.084226]
[1724956714429,0.00025282,59349.0,59343.0,0.084225]
[1724956714616,0.00025282,59349.0,59345.0,0.084223]
[1724956714820,0.36316,59356.0,59348.0,0.3608]
[1724956715021,0.3608,59362.0,59348.0,0.3608]
[1724956715221,0.084204,59359.0,59350.0,0.084215]
[1724956715526,0.3608,59362.0,59354.0,0.445009]
[1724956716024,0.444999,59362.0,59354.0,0.3608]
[1724956716229,0.00025282,59364.0,59359.0,0.3608]
[1724956716537,0.00025282,59364.0,59362.0,0.084199]
[1724956717025,0.42,59364.0,59353.0,0.3608]
[1724956717226,0.3608,59360.0,59353.0,0.3608]